fUSD/lending_fUSD_20250419
["ID","MTS","AMOUNT","RATE_DAILY","PERIOD"]
[358393785,1745056370662,33574.25,0.00054794,120]
[358393786,1745056373195,500.0,0.00054794,120]
[358393787,1745056381776,471.5651473,0.00054794,120]
[358393788,1745056391578,575.85887878,0.00054794,120]
[358393789,1745056400366,500.0,0.00054794,120]
[358393790,1745056403263,563.75937939,0.00054794,120]
[358393791,1745056404998,598.68,0.00054794,120]
[358393792,1745056415523,7539.67,0.000494,60]
[358393793,1745056415807,7539.67,0.00051,60]
[358393794,1745056418533,500.0,0.00054794,120]
[358393795,1745056418572,500.0,0.00054794,120]
[358393796,1745056419810,500.0,0.00054794,120]
[358393797,1745056439801,709.6,0.00054794,120]
[358393798,1745056443900,500.0,0.00054794,120]
[358393799,1745056449945,569.00325499,0.00054794,120]
[358393800,1745056456772,500.0,0.00054794,120]
[358393801,1745056460797,500.0,0.00054794,120]
[358393802,1745056467258,500.0,0.00054794,120]
[358393803,1745056490639,500.0,0.00053425,120]
[358393804,1745056490688,500.0,0.00053425,120]
[358393805,1745056490741,468.7443004,0.00053425,120]
[358393806,1745056490798,163.19381116,0.00053425,120]
[358393807,1745056494234,500.0,0.00054794,120]
[358393808,1745056496309,500.0,0.00054794,120]
[358393809,1745056502382,500.0,0.00054794,120]
[358393810,1745056507712,1928.81,0.00054794,120]
[358393811,1745056508598,180.7125962,0.00054794,30]
[358393812,1745056509484,150.0,0.00054794,30]
[358393813,1745056510647,150.0,0.00054794,30]
[358393814,1745056512464,150.0,0.00054794,30]
[358393815,1745056514984,150.0,0.00054794,30]
[358393816,1745056515931,150.0,0.00054794,30]
[358393817,1745056516633,150.0,0.00054794,30]
[358393818,1745056519000,200.25827935,0.00054495,120]
[358393819,1745056520463,150.0,0.00054794,30]
[358393820,1745056521454,150.0,0.00054495,120]
[358393821,1745056537076,1345.73,0.00054794,120]
[358393822,1745056537789,500.0,0.00054794,120]
[358393823,1745056543185,1000.0,0.00054794,35]
[358393824,1745056569730,500.0,0.00054794,120]
[358393825,1745056577523,583.94393188,0.00054794,120]
[358393826,1745056579057,500.0,0.00054794,120]
[358393827,1745056580337,500.0,0.00054794,120]
[358393828,1745056582011,300.32487441,0.00054794,120]
[358393829,1745056585583,1699.47,0.00046575,120]
[358393830,1745056585809,1699.47,0.00054794,120]
[358393831,1745056586247,500.0,0.00054794,120]
[358393832,1745056593753,200.0,0.000547,99]
[358393833,1745056594869,200.0,0.0005,81]
[358393834,1745056595375,200.0,0.00051,85]
[358393835,1745056595902,200.0,0.00052,89]
[358393836,1745056596631,180.65923232,0.00035123,30]
[358393837,1745056596746,180.65923232,0.00035507,30]
[358393838,1745056596786,200.0,0.00053,92]
[358393839,1745056596862,180.65923232,0.0003589,30]
[358393840,1745056597349,200.0,0.00054,96]
[358393841,1745056605487,600.0,0.00054794,120]
[358393842,1745056611985,6031.73,0.000494,60]
[358393843,1745056612287,6031.73,0.000507,60]
[358393844,1745056612954,6031.73,0.000531,60]
[358393845,1745056614319,500.0,0.00054794,120]
[358393846,1745056617319,500.0,0.00054794,120]
[358393847,1745056621906,171.42,0.00054794,120]
[358393848,1745056625399,150.0,0.00054794,30]
[358393849,1745056626041,150.71792179,0.00054794,30]
[358393850,1745056626984,208.48162134,0.00054794,30]
[358393851,1745056628494,500.0,0.00054794,120]
[358393852,1745056630232,150.0,0.00054794,30]
[358393853,1745056631671,150.0,0.00054794,30]
[358393854,1745056632433,150.51650669,0.00054794,30]
[358393855,1745056633203,150.0,0.00054794,30]
[358393856,1745056634207,199.41724828,0.00054794,30]
[358393857,1745056634845,150.0,0.00054794,30]
[358393858,1745056641294,32175.32,0.00054794,120]
[358393859,1745056647347,191.29699668,0.00054794,120]
[358393860,1745056660380,522.78475398,0.00054794,120]
[358393861,1745056665627,500.0,0.00054794,120]
[358393862,1745056674130,500.0,0.00054794,120]
[358393863,1745056679227,500.0,0.00054794,120]
[358393864,1745056683918,680.03,0.00054794,120]
[358393865,1745056694570,500.0,0.00054794,120]
[358393866,1745056700258,500.0,0.00054794,120]
[358393867,1745056703783,500.0,0.00054794,120]
[358393868,1745056708967,993.889,0.000422,63]
[358393869,1745056727048,539.75806277,0.00054794,120]
[358393870,1745056743968,500.0,0.00054794,120]
[358393871,1745056744185,1848.44,0.00054794,120]
[358393872,1745056749181,500.0,0.00054794,120]
[358393873,1745056754719,500.0,0.00054794,120]
[358393874,1745056762316,500.0,0.00054794,120]
[358393875,1745056771776,526.93055538,0.00054794,120]
[358393876,1745056774293,500.0,0.00054794,120]
[358393877,1745056801203,1289.66,0.00054794,120]
[358393878,1745056807495,4222.21,0.000494,60]
[358393879,1745056807616,500.0,0.00054794,120]
[358393880,1745056812706,500.0,0.00054794,120]
[358393881,1745056813533,4222.21,0.000507,60]
[358393882,1745056813816,4222.21,0.000531,60]
[358393883,1745056815613,530.221745,0.00053596,60]
[358393884,1745056815913,530.221745,0.00052398,60]
[358393885,1745056816276,530.221745,0.00051199,60]
[358393886,1745056816598,530.221745,0.0005,60]
[358393887,1745056817534,530.221745,0.00054794,120]
[358393888,1745056817837,530.221745,0.00054794,120]
[358393889,1745056818132,530.221745,0.00054794,120]
[358393890,1745056823741,1557.85,0.00046575,120]
[358393891,1745056823972,1557.85,0.00054794,120]
[358393892,1745056825306,530.221745,0.00018996,5]
[358393893,1745056838221,500.0,0.00054794,120]
[358393894,1745056846913,583.66702725,0.00054794,120]
[358393895,1745056868819,834.89,0.00054794,120]
[358393896,1745056869884,30834.68,0.00054794,120]
[358393897,1745056882747,500.0,0.00054794,120]
[358393898,1745056889255,500.0,0.00054794,120]
[358393899,1745056890000,500.0,0.00054794,120]
[358393900,1745056897747,500.0,0.00054794,120]
[358393901,1745056909124,527.31810909,0.00054794,120]
[358393902,1745056919291,651.7,0.00054794,120]
[358393903,1745056919495,500.0,0.00054794,120]
[358393904,1745056929535,500.0,0.00054794,120]
[358393905,1745056932783,561.01,0.00054794,120]
[358393906,1745056933625,500.0,0.00054794,120]
[358393907,1745056934891,500.0,0.00054794,120]
[358393908,1745056941567,529.51138379,0.00054794,120]
[358393909,1745056945116,500.0,0.00054794,120]
[358393910,1745056946688,939.79,0.00054794,120]
[358393911,1745056950035,500.0,0.00054794,120]
[358393912,1745056953005,151.0,0.00054795,30]
[358393913,1745056954189,156.587,0.00054795,30]
[358393914,1745056954819,162.380719,0.00054795,30]
[358393915,1745056955426,168.3888056,0.00054795,30]
[358393916,1745056956594,263.6434754,0.00054795,30]
[358393917,1745056980570,347.51583788,0.00054794,120]
[358393918,1745057001911,1235.92,0.00054794,120]
[358393919,1745057008875,3283.95,0.000494,60]
[358393920,1745057009157,3283.95,0.00051,60]
[358393921,1745057017135,1771.42,0.00054794,120]
[358393922,1745057025474,500.0,0.00054794,120]
[358393923,1745057030058,166.34779338,0.00054794,120]
[358393924,1745057037874,500.0,0.00054794,120]
[358393925,1745057042437,207.01743645,0.00054794,120]
[358393926,1745057053952,1428.02,0.00046575,120]
[358393927,1745057054197,1428.02,0.00054794,120]
[358393928,1745057055733,150.0,0.00019482,7]
[358393929,1745057059448,500.0,0.00054794,120]
[358393930,1745057082695,500.0,0.00054794,120]
[358393931,1745057115037,203.3205,0.00051557,120]
[358393932,1745057129512,500.0,0.00054794,120]
[358393933,1745057136102,500.0,0.00054794,120]
[358393934,1745057141617,1000.0,0.00054794,35]
[358393935,1745057143116,29549.9,0.00054794,120]
[358393936,1745057148145,624.54,0.00054794,120]
[358393937,1745057162397,250.0,0.00017,2]
[358393938,1745057165610,-250.0,0.00019,2]
[358393939,1745057176326,500.0,0.00054794,120]
[358393940,1745057177830,500.0,0.00054794,120]
[358393941,1745057203038,520.8,0.0005,120]
[358393942,1745057204552,2554.18,0.000494,60]
[358393943,1745057204842,2554.18,0.00052,60]
[358393944,1745057208875,400.0,0.00054,120]
[358393945,1745057213624,1697.61,0.00054794,120]
[358393946,1745057229924,500.0,0.00054794,120]
[358393947,1745057231819,1184.43,0.00054794,120]
[358393948,1745057253685,492.72189654,0.00054794,120]
[358393949,1745057267432,500.0,0.00054794,120]
[358393950,1745057268991,531.41737102,0.00054794,120]
[358393951,1745057280345,500.0,0.00054794,120]
[358393952,1745057285533,500.0,0.00054794,120]
[358393953,1745057301030,543.7999562,0.00054794,120]
[358393954,1745057304594,549.0161928,0.00054794,120]
[358393955,1745057306025,1309.02,0.00046575,120]
[358393956,1745057306318,1309.02,0.00054794,120]
[358393957,1745057342755,500.0,0.00054794,120]
[358393958,1745057342885,28318.66,0.00054794,120]
[358393959,1745057358637,1000.0,0.000547,120]
[358393960,1745057359680,261.23247378,0.00054794,120]
[358393961,1745057363354,500.0,0.00054794,120]
[358393962,1745057395831,500.0,0.00054794,120]
[358393963,1745057397756,518.50016721,0.00054794,120]
[358393964,1745057400062,1787.93,0.000494,60]
[358393965,1745057400748,1787.93,0.00051,60]
[358393966,1745057402615,598.52,0.00054794,120]
[358393967,1745057404987,250.0,0.00019147,5]
[358393968,1745057409753,500.0,0.00054794,120]
[358393969,1745057412411,500.0,0.00054794,120]
[358393970,1745057418966,500.0,0.00054794,120]
[358393971,1745057429208,500.0,0.00054794,120]
[358393980,1745057432100,-50.0,0.00019,2]
[358393981,1745057432110,-291.63813106,0.00019293,2]
[358393982,1745057432120,-368.31475032,0.00019349,2]
[358393983,1745057432204,-5293.65524968,0.00019349,2]
[358393984,1745057432213,-179.05,0.00019394,2]
[358393985,1745057432225,-217.06,0.00019506,2]
[358393986,1745057432235,-408.24,0.00019589,2]
[358393987,1745057432245,-993.888,0.000196,2]
[358393988,1745057432256,-853.251,0.00019797,2]
[358393989,1745057432265,-4079.648,0.00019797,2]
[358393990,1745057432274,-155.381,0.00019797,2]
[358393991,1745057432284,-885.974,0.00019797,2]
[358393992,1745057432294,-350.5030277,0.00019799,2]
[358393993,1745057432305,-300.0,0.00019899,2]
[358393994,1745057432314,-219.29507923,0.000199,2]
[358393995,1745057432325,-170.0412,0.000199,2]
[358393996,1745057432335,-156.97062581,0.000199,2]
[358393997,1745057432344,-150.0,0.000199,2]
[358393998,1745057432355,-747.60914212,0.000199,2]
[358393999,1745057432365,-156.43839278,0.000199,2]
[358394000,1745057432374,-869.72,0.000199,2]
[358394001,1745057432383,-4464.75257248,0.000199,2]
[358394002,1745057432393,-208.9706063,0.000199,2]
[358394003,1745057432405,-160.0734548,0.00019973,2]
[358394004,1745057432415,-505.11732357,0.00019973,2]
[358394006,1745057432424,-501.34518868,0.00019973,2]
[358394008,1745057432433,-184.96365317,0.00019973,2]
[358394010,1745057432443,-504.5464615,0.00019973,2]
[358394012,1745057432452,-500.0,0.00019973,2]
[358394014,1745057432461,-192.7898128,0.00019973,2]
[358394016,1745057432470,-850.0,0.00019989,2]
[358394018,1745057432479,-9464.20960156,0.0001999,2]
[358394020,1745057432489,-194.94961079,0.0001999,2]
[358394022,1745057432498,-194.94961079,0.0001999,2]
[358394024,1745057432507,-194.94961079,0.0001999,2]
[358394026,1745057432517,-161.87,0.0001999,2]
[358394028,1745057432526,-161.87,0.0001999,2]
[358394030,1745057432535,-161.87,0.0001999,2]
[358394032,1745057432544,-161.87,0.0001999,2]
[358394033,1745057432554,-161.87,0.0001999,2]
[358394035,1745057432563,-161.87,0.0001999,2]
[358394037,1745057432572,-161.87,0.0001999,2]
[358394039,1745057432581,-161.87,0.0001999,2]
[358394041,1745057432591,-500.0,0.00019999,2]
[358394043,1745057432600,-238.53943876,0.0002,2]
[358394045,1745057432610,-12112.63916713,0.0002,2]
[358394048,1745057432625,-39556.39168603,0.0002,2]
[358394050,1745057432637,-59205.40332488,0.0002,2]
[358394052,1745057432647,-77806.11006448,0.0002,2]
[358394296,1745057438192,-253.98059422,0.00019796,2]
[358394297,1745057438202,-190.80225648,0.0002,2]
[358394298,1745057438213,-16165.63506343,0.0002,2]
[358394299,1745057438224,-670.38086874,0.0002,2]
[358394300,1745057438245,-537.61999977,0.0002,2]
[358394301,1745057438257,-2021.60204838,0.0002,2]
[358394342,1745057440653,-852.09599943,0.00019897,2]
[358394343,1745057440813,-308.87600057,0.00019897,2]
[358394344,1745057440824,-1873.89360494,0.0002,2]
[358394345,1745057440835,-3195.17497113,0.0002,2]
[358394359,1745057444834,-638636.08966897,0.0002,2]
[358394368,1745057451981,1626.88,0.00054794,120]
[358394369,1745057455186,800.11,0.00054794,120]
[358394370,1745057467345,207.45652584,0.00054,120]
[358394371,1745057468381,500.0,0.00054794,120]
[358394372,1745057475600,280.12015945,0.00054794,120]
[358394373,1745057479583,500.0,0.00054794,120]
[358394374,1745057479950,500.0,0.00054794,120]
[358394375,1745057481285,291.8039345,0.00054794,120]
[358394376,1745057484279,1135.08,0.00054794,120]
[358394377,1745057486210,176.064,0.0005479,30]
[358394378,1745057488650,500.0,0.00054794,120]
[358394379,1745057490865,200.0,0.000547,99]
[358394380,1745057492386,537.36790913,0.00054794,120]
[358394381,1745057496150,164.28,0.00054794,120]
[358394382,1745057502882,500.0,0.00054794,120]
[358394383,1745057510175,500.0,0.00054794,120]
[358394384,1745057513496,500.0,0.00054794,120]
[358394385,1745057516445,500.0,0.00054794,120]
[358394386,1745057522677,250.0,0.0001985,5]
[358394387,1745057528020,1199.94,0.00046575,120]
[358394388,1745057528260,1199.94,0.00054794,120]
[358394389,1745057536440,900.63,0.00054794,120]
[358394390,1745057536480,500.0,0.00054794,120]
[358394391,1745057537060,537.63,0.00054794,120]
[358394392,1745057540911,500.0,0.00054794,120]
[358394393,1745057547631,158770.44747098,0.0005479,120]
[358394394,1745057548307,500.0,0.00054794,120]
[358394395,1745057550417,500.0,0.00054794,120]
[358394396,1745057573665,151765.25,0.00054794,120]
[358394397,1745057592829,500.0,0.00054794,120]
[358394398,1745057596247,1589.27,0.000494,60]
[358394399,1745057596523,1589.27,0.00052,60]
[358394400,1745057598436,494.40378124,0.00054794,120]
[358394401,1745057621525,496.3393212,0.00054794,120]
[358394402,1745057621949,573.58,0.00054794,120]
[358394403,1745057637437,500.0,0.00054794,120]
[358394404,1745057638770,500.0,0.00054794,120]
[358394405,1745057644745,500.0,0.00054794,120]
[358394406,1745057649953,227.61082063,0.00054794,120]
[358394407,1745057667467,2494.53,0.00054795,120]
[358394408,1745057695614,1559.09,0.00054794,120]
[358394409,1745057725433,1087.78,0.00054794,120]
[358394410,1745057749581,1000.0,0.00054794,35]
[358394411,1745057754049,500.0,0.00054794,120]
[358394412,1745057765184,500.0,0.00054794,120]
[358394413,1745057769095,1099.94,0.00046575,120]
[358394414,1745057769189,1099.94,0.00054794,120]
[358394415,1745057787394,178.23,0.00016383,2]
[358394416,1745057791199,1112.49,0.0005,60]
[358394417,1745057791605,1112.49,0.00054,60]
[358394418,1745057804793,500.0,0.00054794,120]
[358394419,1745057823730,145441.7,0.00054794,120]
[358394420,1745057835768,500.0,0.00054794,120]
[358394421,1745057860719,500.0,0.00054794,120]
[358394422,1745057862007,500.0,0.00054794,120]
[358394423,1745057864831,549.68,0.00054794,120]
[358394424,1745057867170,4713.55156669,0.000546,60]
[358394425,1745057881162,500.0,0.00054794,120]
[358394426,1745057908771,596.333,0.00039465,55]
[358394427,1745057911829,4713.55156669,0.000547,60]
[358394428,1745057923717,4713.55156669,0.0005461,60]
[358394429,1745057927551,1494.13,0.00054794,120]
[358394430,1745057937183,500.0,0.00054794,120]
[358394431,1745057941004,500.0,0.00054794,120]
[358394432,1745057952733,500.0,0.00054794,120]
[358394433,1745057957569,4713.55156669,0.0005478,60]
[358394434,1745057964424,1042.46,0.00054794,120]
[358394435,1745057966830,500.0,0.00054794,120]
[358394436,1745057972110,4713.55156669,0.0005469,60]
[358394437,1745057983556,309.0,0.0005342,60]
[358394438,1745057987671,889.99,0.0005,60]
[358394439,1745057987966,889.99,0.00054,60]
[358394440,1745057994237,500.0,0.00054794,120]
[358394441,1745057995179,500.0,0.00054794,120]
[358394442,1745058009976,1008.28,0.00046575,120]
[358394443,1745058010227,1008.28,0.00054794,120]
[358394444,1745058017546,500.0,0.00054794,120]
[358394445,1745058038982,614.78245918,0.00054794,120]
[358394446,1745058048004,766.77,0.00054794,120]
[358394447,1745058053423,139381.63,0.00054794,120]
[358394448,1745058062953,500.0,0.00054794,120]
[358394449,1745058078303,500.0,0.00054794,120]
[358394451,1745058106232,526.78,0.00054794,120]
[358394452,1745058115101,515.23,0.00054794,120]
[358394453,1745058122385,500.0,0.00054794,120]
[358394454,1745058128615,500.0,0.00054794,120]
[358394455,1745058142032,863.1,0.00054794,120]
[358394456,1745058144057,500.0,0.00054794,120]
[358394457,1745058173636,1431.87,0.00054794,120]
[358394458,1745058184111,711.99,0.0005,60]
[358394459,1745058184415,711.99,0.00054,60]
[358394460,1745058197382,305.04,0.00054126,30]
[358394461,1745058215817,999.02,0.00054794,120]
[358394462,1745058217841,846.828528,0.00054794,120]
[358394463,1745058218139,846.828528,0.00054794,120]
[358394464,1745058218439,846.828528,0.00054794,120]
[358394465,1745058218988,846.828528,0.00053846,60]
[358394466,1745058219270,846.828528,0.00052898,60]
[358394467,1745058219559,846.828528,0.00051949,60]
[358394468,1745058219833,846.828528,0.00051,60]
[358394469,1745058224226,846.828528,0.00018999,5]
[358394470,1745058241086,500.0,0.00054794,120]
[358394471,1745058241357,500.0,0.00054794,120]
[358394472,1745058242352,500.0,0.00054794,120]
[358394473,1745058251033,500.0,0.00054794,120]
[358394474,1745058255423,999.0,0.00046575,120]
[358394475,1745058255644,999.0,0.00054794,120]
[358394476,1745058260259,10098.2,0.00054794,30]
[358394477,1745058278346,1069.0,0.00052055,30]
[358394478,1745058300491,133574.06,0.00054794,120]
[358394479,1745058305767,521.43762597,0.00054794,120]
[358394480,1745058322134,500.0,0.00054794,120]
[358394481,1745058324504,1000.0,0.00054794,35]
[358394482,1745058356165,504.83,0.00054794,120]
[358394483,1745058357371,500.0,0.00054794,120]
[358394484,1745058371675,500.0,0.00054794,120]
[358394487,1745058379168,569.59,0.0005,60]
[358394488,1745058379451,569.59,0.00054,60]
[358394489,1745058380019,200.0,0.000547,99]
[358394490,1745058397812,500.0,0.00054794,120]
[358394491,1745058399939,500.0,0.00054794,120]
[358394492,1745058404850,157.44,0.00054794,120]
[358394493,1745058413789,500.0,0.00054794,120]
[358394494,1745058426816,954.58,0.00054794,120]
[358394495,1745058432740,500.0,0.00054794,120]
[358394496,1745058438131,-457.088571,0.00019402,2]
[358394497,1745058438152,-300.000001,0.000195,2]
[358394498,1745058438173,-164.20595159,0.00019797,2]
[358394499,1745058441065,1500.0,0.000545,120]
[358394500,1745058450129,500.0,0.00054794,120]
[358394501,1745058457662,500.0,0.00054794,120]
[358394502,1745058460987,163.83,0.00027425,30]
[358394503,1745058461322,163.83,0.00050247,120]
[358394504,1745058467563,957.39,0.00054794,120]
[358394505,1745058468249,500.0,0.00054794,120]
[358394508,1745058492103,241.96430863,0.00054794,120]
[358394509,1745058495319,500.0,0.00054794,120]
[358394510,1745058499284,1855.33,0.00017368,2]
[358394511,1745058505536,999.0,0.00046575,120]
[358394512,1745058505763,999.0,0.00054794,120]
[358394513,1745058516672,1146.02064556,0.00018,2]
[358394514,1745058520987,444.22340138,0.0004788,100]
[358394515,1745058537171,500.0,0.00054794,120]
[358394520,1745058552572,128008.48,0.00054794,120]
[358394521,1745058567459,500.0,0.00054794,120]
[358394522,1745058574842,455.67,0.0005,60]
[358394523,1745058575165,455.67,0.00054,60]
[358394529,1745058602409,500.0,0.00054794,120]
[358394530,1745058619563,500.0,0.00054794,120]
[358394539,1745058632287,-196.46,0.00019118,2]
[358394540,1745058632300,-512.17,0.00019225,2]
[358394541,1745058632311,-250.0,0.00019429,2]
[358394542,1745058632321,-1855.33,0.00019632,2]
[358394543,1745058632330,-5968.06819615,0.00019797,2]
[358394544,1745058632342,-20.93180385,0.00019797,2]
[358394545,1745058632352,-332.9778763,0.00019799,2]
[358394546,1745058632362,-86.85154402,0.00019828,2]
[358394547,1745058632374,-913.14845598,0.00019828,2]
[358394548,1745058632383,-300.0,0.00019895,2]
[358394549,1745058632392,-300.0,0.00019895,2]
[358394550,1745058632403,-227.0,0.00019896,2]
[358394551,1745058632413,-794.0,0.00019897,2]
[358394552,1745058632423,-70.17810952,0.00019897,2]
[358394553,1745058632449,-477.32189048,0.00019897,2]
[358394554,1745058632459,-931.981,0.00019897,2]
[358394555,1745058632468,-1296.191,0.00019897,2]
[358394556,1745058632478,-1444.313,0.00019897,2]
[358394557,1745058632487,-576.478,0.00019897,2]
[358394558,1745058632497,-4155.0,0.00019897,2]
[358394559,1745058632507,-2051.0,0.00019897,2]
[358394560,1745058632516,-934.083,0.00019897,2]
[358394561,1745058632526,-3972.0,0.00019897,2]
[358394562,1745058632535,-268.274,0.00019897,2]
[358394563,1745058632545,-155.381,0.00019897,2]
[358394564,1745058632554,-14239.87692767,0.00019897,2]
[358394566,1745058632566,-359.189994,0.00019897,2]
[358394568,1745058632578,-4034.1602354,0.00019897,2]
[358394570,1745058632589,-1340.13,0.00019897,2]
[358394586,1745058635875,500.0,0.00054794,120]
[358394591,1745058638455,-2430.0561402,0.00019897,2]
[358394592,1745058638465,-634.7074,0.000199,2]
[358394593,1745058638474,-112.36950136,0.000199,2]
[358394594,1745058638505,-2249.02329864,0.000199,2]
[358394595,1745058638515,-630.0936,0.000199,2]
[358394596,1745058638525,-1139.2202,0.000199,2]
[358394597,1745058638534,-15735.1079,0.000199,2]
[358394598,1745058638544,-8431.5183,0.000199,2]
[358394599,1745058638554,-3380.5645,0.000199,2]
[358394600,1745058638564,-5775.4747,0.000199,2]
[358394601,1745058638574,-362.76900685,0.000199,2]
[358394602,1745058638584,-150.0,0.00019933,2]
[358394603,1745058638595,-350.55089011,0.00019973,2]
[358394604,1745058638605,-500.0,0.00019973,2]
[358394605,1745058638615,-418.67084588,0.00019999,2]
[358394606,1745058638625,-280.57488167,0.00019999,2]
[358394607,1745058638635,-238.53943875,0.0002,2]
[358394608,1745058638645,-55437.21708902,0.0002,2]
[358394609,1745058638656,-57746.78446178,0.0002,2]
[358394610,1745058638668,-667.08657978,0.0002,2]
[358394611,1745058638680,-7475.3396246,0.0002,2]
[358394612,1745058638692,-489.78398155,0.0002,2]
[358394613,1745058638704,-20189.68884494,0.0002,2]
[358394614,1745058638716,-2203247.66010123,0.0002,2]
[358394615,1745058638726,-50000.0,0.0002,2]
[358394617,1745058638735,-1804.6,0.0002,2]
[358394618,1745058638745,-6653.0,0.0002,2]
[358394619,1745058638754,-5644.60057402,0.0002,2]
[358394620,1745058638764,-123288.75384873,0.0002,2]
[358394621,1745058638774,-340569.66230341,0.0002,2]
[358394805,1745058640499,-707.145,0.00019897,2]
[358394807,1745058640509,-11795.60720785,0.0002,2]
[358394812,1745058640554,-1177.36941063,0.0002,2]
[358394823,1745058640665,-3868.2,0.0002,2]
[358395037,1745058643363,-8.37044591,0.0002,2]
[358395039,1745058643399,-605.79349098,0.0002,2]
[358395059,1745058645109,-266995.10315909,0.0002,2]
[358395060,1745058645128,-37000.00641025,0.0002,2]
[358395061,1745058646720,-398.56116829,0.0002,2]
[358395115,1745058660341,734.82,0.00054794,120]
[358395116,1745058675394,917.5,0.00054794,120]
[358395117,1745058676014,1332.44,0.00054794,120]
[358395118,1745058676050,500.0,0.00054794,120]
[358395119,1745058708333,500.0,0.00054794,120]
[358395120,1745058711370,500.0,0.00054794,120]
[358395121,1745058720548,500.0,0.00054794,120]
[358395122,1745058723528,1000.0,0.00048129,120]
[358395123,1745058736391,999.0,0.00046575,120]
[358395124,1745058736667,999.0,0.00054794,120]
[358395125,1745058736856,827.14,0.00054794,120]
[358395126,1745058743035,500.0,0.00054794,120]
[358395127,1745058745109,500.0,0.00054794,120]
[358395128,1745058754157,500.0,0.00054794,120]
[358395129,1745058756363,500.0,0.00054794,120]
[358395130,1745058757738,500.0,0.00054794,120]
[358395131,1745058770763,364.54,0.0005,60]
[358395132,1745058771062,364.54,0.00054,60]
[358395133,1745058779734,-225.24930275,0.00019256,2]
[358395134,1745058782685,1035.0,0.00053,120]
[358395135,1745058805605,122674.79,0.00054794,120]
[358395136,1745058814476,215.996615,0.00053,120]
[358395137,1745058817491,215.996623,0.00053,120]
[358395138,1745058832885,500.0,0.00054794,120]
[358395139,1745058834154,500.0,0.00054794,120]
[358395140,1745058835132,241.933962,0.00053,120]
[358395141,1745058835352,500.0,0.00054794,120]
[358395142,1745058838849,241.933952,0.00053,120]
[358395143,1745058848449,500.0,0.00054794,120]
[358395144,1745058857564,500.0,0.00054794,120]
[358395145,1745058861981,500.0,0.00054794,120]
[358395146,1745058890245,500.0,0.00054794,39]
[358395147,1745058891259,1276.92,0.00054794,120]
[358395148,1745058897686,-166.08,0.00019174,2]
[358395149,1745058902047,-298.44271997,0.00019146,2]